Workbook

Sheet PMP
A2: FICHA DE ALMACÉN
A4: Producto: | E4: Método de valoración: | H4: Precio Medio Ponderado
A5: STOCK MÁXIMO:
A6: STOCK MÍNIMO:
C9: Entradas | F9: Salidas | I9: Existencias
A10: Fecha | B10: Operación | C10: Cantidad | D10: Precio | E10: Valor | F10: Cantidad | G10: Precio | H10: Valor | I10: Cantidad | J10: Precio | K10: Valor
A11: 2014-01-01 | B11: Existencias iniciales | C11: 4,000 | D11: 0.21 | E11: =IF(C11="","",C11*D11) -> 840.00 € | H11: =IF(F11="","",F11*G11) ->  | I11: =IF(C11="","",C11) -> 4,000 | J11: =IF(D11="","",D11) -> 0.21 | K11: =IF(I11="","",I11*J11) -> 840.00 € | L11: Existencias iniciales
A12: 2014-01-03 | B12: Compras | C12: 3,000 | D12: 0.24 | E12: 720.00 € | G12: =IF(F12="","",J11) ->  | H12: =IF(F12="","",F12*G12) ->  | I12: =IF(AND(C12="",F12=""),"",IF(C12<>"",I11+C12,IF(F12<>"",I11-F12))) -> 7,000 | J12: =IF(AND(C12="",F12=""),"",IF(C12<>"",(K11+E12)/(I11+C12),IF(J11="","",J11))) -> 0.22 | K12: =IF(I12="","",I12*J12) -> 1,560.00 € | L12: =IF(K12="","",IF(K13="","Existencias finales","")) -> 
A13: 2014-01-05 | B13: Ventas | F13: 2,000 | G13: =IF(F13="","",J12) -> 0.22 | H13: 445.71 € | I13: =IF(AND(C13="",F13=""),"",IF(C13<>"",I12+C13,IF(F13<>"",I12-F13))) -> 5,000 | J13: =IF(AND(C13="",F13=""),"",IF(C13<>"",(K12+E13)/(I12+C13),IF(J12="","",J12))) -> 0.22 | K13: 1,114.29 €
A14: 2014-01-06 | B14: Ventas | F14: 2,600 | G14: 0.22 | H14: 579.43 € | I14: 2,400 | J14: 0.22 | K14: 534.86 €
A15: 2014-01-07 | B15: Compras | C15: 1,600 | D15: 0.25 | E15: 400.00 € | I15: 4,000 | J15: 0.23 | K15: 934.86 € | L15: Existencias finales
L16: =IF(K16="","",IF(K17="","Existencias finales","")) -> 
K17: =IF(I17="","",I17*J17) ->  | L17: =IF(K17="","",IF(K18="","Existencias finales","")) -> 
K18: =IF(I18="","",I18*J18) -> 
K19: =IF(I19="","",I19*J19) -> 
E76: =IF(C76="","",C76*D76) ->  | H76: =IF(F76="","",F76*G76) ->  | K76: =IF(I76="","",I76*J76) -> 
G77: =IF(F77="","",J76) ->  | I77: =IF(AND(C77="",F77=""),"",IF(C77<>"",I76+C77,IF(F77<>"",I76-F77))) ->  | J77: =IF(AND(C77="",F77=""),"",IF(C77<>"",(K76+E77)/(I76+C77),IF(J76="","",J76))) -> 
L81: =IF(K81="","",IF(K82="","Existencias finales","")) -> 
E140: =IF(C140="","",C140*D140) ->  | H140: =IF(F140="","",F140*G140) ->  | K140: =IF(I140="","",I140*J140) -> 
G141: =IF(F141="","",J140) ->  | I141: =IF(AND(C141="",F141=""),"",IF(C141<>"",I140+C141,IF(F141<>"",I140-F141))) ->  | J141: =IF(AND(C141="",F141=""),"",IF(C141<>"",(K140+E141)/(I140+C141),IF(J140="","",J140))) -> 
L145: =IF(K145="","",IF(K146="","Existencias finales","")) -> 
E204: =IF(C204="","",C204*D204) ->  | H204: =IF(F204="","",F204*G204) ->  | K204: =IF(I204="","",I204*J204) -> 
G205: =IF(F205="","",J204) ->  | I205: =IF(AND(C205="",F205=""),"",IF(C205<>"",I204+C205,IF(F205<>"",I204-F205))) ->  | J205: =IF(AND(C205="",F205=""),"",IF(C205<>"",(K204+E205)/(I204+C205),IF(J204="","",J204))) -> 
L209: =IF(K209="","",IF(K210="","Existencias finales","")) -> 
E268: =IF(C268="","",C268*D268) ->  | H268: =IF(F268="","",F268*G268) ->  | K268: =IF(I268="","",I268*J268) -> 
G269: =IF(F269="","",J268) ->  | I269: =IF(AND(C269="",F269=""),"",IF(C269<>"",I268+C269,IF(F269<>"",I268-F269))) ->  | J269: =IF(AND(C269="",F269=""),"",IF(C269<>"",(K268+E269)/(I268+C269),IF(J268="","",J268))) -> 
L273: =IF(K273="","",IF(K274="","Existencias finales","")) -> 
E332: =IF(C332="","",C332*D332) ->  | H332: =IF(F332="","",F332*G332) ->  | K332: =IF(I332="","",I332*J332) -> 
G333: =IF(F333="","",J332) ->  | I333: =IF(AND(C333="",F333=""),"",IF(C333<>"",I332+C333,IF(F333<>"",I332-F333))) ->  | J333: =IF(AND(C333="",F333=""),"",IF(C333<>"",(K332+E333)/(I332+C333),IF(J332="","",J332))) -> 
L337: =IF(K337="","",IF(K338="","Existencias finales","")) -> 
E396: =IF(C396="","",C396*D396) ->  | H396: =IF(F396="","",F396*G396) ->  | K396: =IF(I396="","",I396*J396) -> 
G397: =IF(F397="","",J396) ->  | I397: =IF(AND(C397="",F397=""),"",IF(C397<>"",I396+C397,IF(F397<>"",I396-F397))) ->  | J397: =IF(AND(C397="",F397=""),"",IF(C397<>"",(K396+E397)/(I396+C397),IF(J396="","",J396))) -> 
L401: =IF(K401="","",IF(K402="","Existencias finales","")) -> 
E460: =IF(C460="","",C460*D460) ->  | H460: =IF(F460="","",F460*G460) ->  | K460: =IF(I460="","",I460*J460) -> 
G461: =IF(F461="","",J460) ->  | I461: =IF(AND(C461="",F461=""),"",IF(C461<>"",I460+C461,IF(F461<>"",I460-F461))) ->  | J461: =IF(AND(C461="",F461=""),"",IF(C461<>"",(K460+E461)/(I460+C461),IF(J460="","",J460))) -> 
L465: =IF(K465="","",IF(K466="","Existencias finales","")) -> 
E524: =IF(C524="","",C524*D524) ->  | H524: =IF(F524="","",F524*G524) ->  | K524: =IF(I524="","",I524*J524) -> 
G525: =IF(F525="","",J524) ->  | I525: =IF(AND(C525="",F525=""),"",IF(C525<>"",I524+C525,IF(F525<>"",I524-F525))) ->  | J525: =IF(AND(C525="",F525=""),"",IF(C525<>"",(K524+E525)/(I524+C525),IF(J524="","",J524))) -> 
L529: =IF(K529="","",IF(K530="","Existencias finales","")) -> 
E588: =IF(C588="","",C588*D588) ->  | H588: =IF(F588="","",F588*G588) ->  | K588: =IF(I588="","",I588*J588) -> 
G589: =IF(F589="","",J588) ->  | I589: =IF(AND(C589="",F589=""),"",IF(C589<>"",I588+C589,IF(F589<>"",I588-F589))) ->  | J589: =IF(AND(C589="",F589=""),"",IF(C589<>"",(K588+E589)/(I588+C589),IF(J588="","",J588))) -> 
L593: =IF(K593="","",IF(K594="","Existencias finales","")) -> 
E652: =IF(C652="","",C652*D652) ->  | H652: =IF(F652="","",F652*G652) ->  | K652: =IF(I652="","",I652*J652) -> 
G653: =IF(F653="","",J652) ->  | I653: =IF(AND(C653="",F653=""),"",IF(C653<>"",I652+C653,IF(F653<>"",I652-F653))) ->  | J653: =IF(AND(C653="",F653=""),"",IF(C653<>"",(K652+E653)/(I652+C653),IF(J652="","",J652))) -> 
L657: =IF(K657="","",IF(K658="","Existencias finales","")) -> 

Sheet FIFO
A2: FICHA DE ALMACÉN
A4: Artículo | F4: Método de valoración | L4: FIFO
A5: STOCK MÁXIMO:
A6: STOCK MÍNIMO:
A9: Nº | B9: FECHA | C9: COMPRAS | D9: ENTRADAS | H9: MOVIMIENTOS | L9: SALDOS
D10: Cantidad | E10: Precio | F10: Valor | H10: Cantidad | I10: Precio | J10: Valor | L10: Cantidad | M10: Precio | N10: Valor
C11: EXISTENCIAS INICIALES | D11: 4000 | E11: 0.21 | F11: =+D11*E11 -> 840.00 | H11: =IF(SUM($D11:D$11)<=$D$38,D11,$D$38-SUM($H10:H$10)) -> 4000 | I11: =IF(H11<>0,E11,0) -> 0.21 | J11: =+H11*I11 -> 840.00 | L11: =+D11-H11 -> 0 | M11: =IF(L11<>0,E11,0) -> 0 | N11: =+L11*M11 -> 0
A12: 1 | B12: 2014-01-01 | C12: Compras | D12: 3000 | E12: 0.24 | F12: =+D12*E12 -> 720.00 | H12: =IF(SUM($D$11:D12)<=$D$38,D12,$D$38-SUM($H$10:H11)) -> 600 | I12: =IF(H12<>0,E12,0) -> 0.24 | J12: =+H12*I12 -> 144.00 | L12: =+D12-H12 -> 2,400 | M12: =IF(L12<>0,E12,0) -> 0.24 | N12: =+L12*M12 -> 576.00
A13: 2 | B13: 2014-01-03 | C13: Compras | D13: 1600 | E13: 0.25 | F13: =+D13*E13 -> 400.00 | H13: =IF(SUM($D$11:D13)<=$D$38,D13,$D$38-SUM($H$10:H12)) -> 0 | I13: 0 | J13: =+H13*I13 -> 0 | L13: 1,600 | M13: 0.25 | N13: 400.00
F14: =+D14*E14 -> 0 | H14: =IF(SUM($D$11:D14)<=$D$38,D14,$D$38-SUM($H$10:H13)) -> 0 | I14: 0 | J14: 0 | L14: 0 | M14: =IF(L14<>0,E14,0) -> 0 | N14: 0
F15: 0 | H15: =IF(SUM($D$11:D15)<=$D$38,D15,$D$38-SUM($H$10:H14)) -> 0 | I15: 0 | J15: 0 | L15: 0 | M15: 0 | N15: 0
F16: 0 | H16: =IF(SUM($D$11:D16)<=$D$38,D16,$D$38-SUM($H$10:H15)) -> 0 | I16: 0 | J16: 0 | L16: 0 | M16: 0 | N16: 0
F17: 0 | H17: =IF(SUM($D$11:D17)<=$D$38,D17,$D$38-SUM($H$10:H16)) -> 0 | I17: 0 | J17: 0 | L17: 0 | M17: 0 | N17: 0
F18: 0 | H18: =IF(SUM($D$11:D18)<=$D$38,D18,$D$38-SUM($H$10:H17)) -> 0 | I18: 0 | J18: 0 | L18: 0 | M18: 0 | N18: 0
F19: 0 | H19: =IF(SUM($D$11:D19)<=$D$38,D19,$D$38-SUM($H$10:H18)) -> 0 | I19: 0 | J19: 0 | L19: 0 | M19: 0 | N19: 0
F20: 0 | H20: =IF(SUM($D$11:D20)<=$D$38,D20,$D$38-SUM($H$10:H19)) -> 0 | I20: 0 | J20: 0 | L20: 0 | M20: 0 | N20: 0
F21: 0 | H21: =IF(SUM($D$11:D21)<=$D$38,D21,$D$38-SUM($H$10:H20)) -> 0 | I21: 0 | J21: 0 | L21: 0 | M21: 0 | N21: 0
F22: 0 | H22: =IF(SUM($D$11:D22)<=$D$38,D22,$D$38-SUM($H$10:H21)) -> 0 | I22: 0 | J22: 0 | L22: 0 | M22: 0 | N22: 0
F23: 0 | H23: =IF(SUM($D$11:D23)<=$D$38,D23,$D$38-SUM($H$10:H22)) -> 0 | I23: 0 | J23: 0 | L23: 0 | M23: 0 | N23: 0
F24: 0 | H24: =IF(SUM($D$11:D24)<=$D$38,D24,$D$38-SUM($H$10:H23)) -> 0 | I24: 0 | J24: 0 | L24: 0 | M24: 0 | N24: 0
A25: TOTAL COMPRAS | D25: =SUM(D11:D24) -> 8600 | F25: =SUM(F12:F24) -> 1,120.00 | H25: =SUM(H11:H24) -> 4600 | J25: =SUM(J11:J24) -> 984.00 | L25: =+D25-H25 -> 4,000 | N25: =SUM(N11:N24) -> 976.00 | O25: Existencias finales
A27: Nº | B27: FECHA | C27: VENTAS | D27: SALIDAS
D28: Cantidad | E28: Pre.Uni | F28: Valor
A29: 1 | B29: 2014-01-05 | C29: Ventas | D29: 2000.00
B30: 2014-01-06 | C30: Ventas | D30: 2600.00 | H30: DIFERENCIA | K30: =+J25-K38 -> 0
H34: COMPROBACIÓN:
H35: EXISTENCIAS INICIALES | K35: =+F11 -> 840.00
H36: (+) COMPRAS | K36: =+F25 -> 1,120.00
H37: (-) EXISTENCIAL FINALES | K37: =-N25 -> -976.00
A38: TOTAL VENTAS | D38: =SUM(D29:D37) -> 4600 | H38: (=) COSTE DE LAS VENTAS | K38: =+SUM(K35:M37) -> 984.00

Sheet COMPARATIVA
B3: PRECIO MEDIO PONDERADO | E3: FIFO
B4: EXISTENCIAS INICIALES | C4: =PMP!K11 -> 840.00 | E4: EXISTENCIAS INICIALES | F4: =FIFO!K35 -> 840.00
B5: (+) COMPRAS | C5: =SUM(PMP!E12:'PMP'!E500) -> 1,120.00 | E5: (+) COMPRAS | F5: =FIFO!K36 -> 1,120.00
B6: (-) EXISTENCIAL FINALES | C6: =LOOKUP(1E+307,clave) -> 934.86 | E6: (-) EXISTENCIAL FINALES | F6: =-FIFO!K37 -> 976.00
B7: (=) COSTE DE LAS VENTAS | C7: =C4+C5-C6 -> 1,025.14 | E7: (=) COSTE DE LAS VENTAS | F7: =FIFO!K38 -> 984.00
B10: Vemos que la valoración por método FIFO es mayor que la que se obtiene por Precio medio por lo
B11: que la variación de existencia será mayor y por lo tanto el coste de las ventas es menor y supondrá
B12: declarar más ingresos para la empresa lo que implicará pagar más impuesto.
B13: Esto siempre ocurre en épocas de inflación (subida de precios), que por otra parte es lo normal.
B14: Puedes probar simulando con precios a la baja y verás como la conclusión es la contraria.
